[Event "*** Titled Tuesday Blitz"]
[Site "Chess.com"]
[Date "2021.02.16"]
[Round "9"]
[White "Deepweb2020"]
[Black "MergenKakabaev"]
[Result "0-1"]
[WhiteElo "2512"]
[BlackElo "2399"]
[TimeControl "180+1"]
[EndTime "11:48:30 PST"]
[Termination "MergenKakabaev won on time"]

1. d4 {[%clk 0:02:23]} 1... d5 {[%clk 0:02:56.9]} 2. Bf4 {[%clk 0:02:20.9]} 2...
Nf6 {[%clk 0:02:55.6]} 3. e3 {[%clk 0:02:20.7]} 3... c5 {[%clk 0:02:54.8]} 4. c3
{[%clk 0:02:21]} 4... Nc6 {[%clk 0:02:53.8]} 5. Nd2 {[%clk 0:02:20]} 5... Qb6
{[%clk 0:02:53.1]} 6. Qb3 {[%clk 0:02:20.1]} 6... c4 {[%clk 0:02:51.9]} 7. Qc2
{[%clk 0:02:20.5]} 7... Bg4 {[%clk 0:02:48.9]} 8. b3 {[%clk 0:02:19.4]} 8...
cxb3 {[%clk 0:02:47.3]} 9. axb3 {[%clk 0:02:20.3]} 9... e6 {[%clk 0:02:47.8]}
10. Ngf3 {[%clk 0:02:18.5]} 10... Rc8 {[%clk 0:02:46.8]} 11. Qb2 {[%clk
0:02:18]} 11... Be7 {[%clk 0:02:44.8]} 12. Bd3 {[%clk 0:02:17.9]} 12... O-O
{[%clk 0:02:43.3]} 13. h3 {[%clk 0:02:17.1]} 13... Bh5 {[%clk 0:02:41.7]} 14.
O-O {[%clk 0:02:17.7]} 14... Bg6 {[%clk 0:02:32.1]} 15. Bxg6 {[%clk 0:02:13.5]}
15... hxg6 {[%clk 0:02:32]} 16. c4 {[%clk 0:02:09.1]} 16... Nb4 {[%clk 0:01:50]}
17. c5 {[%clk 0:02:06.6]} 17... Qb5 {[%clk 0:01:47.9]} 18. Rxa7 {[%clk
0:01:48.1]} 18... Nd3 {[%clk 0:01:42.4]} 19. Qc3 {[%clk 0:01:47.3]} 19... Nxf4
{[%clk 0:01:41.6]} 20. exf4 {[%clk 0:01:48.2]} 20... Rfd8 {[%clk 0:01:23]} 21.
Ne5 {[%clk 0:01:46.6]} 21... Ne4 {[%clk 0:00:57.8]} 22. Nxe4 {[%clk 0:01:40.6]}
22... dxe4 {[%clk 0:00:58.7]} 23. Rfa1 {[%clk 0:01:27.6]} 23... Bf6 {[%clk
0:00:53.2]} 24. R1a5 {[%clk 0:01:24.3]} 24... Qe2 {[%clk 0:00:51.6]} 25. Rxb7
{[%clk 0:01:16.6]} 25... Qd1+ {[%clk 0:00:50.7]} 26. Kh2 {[%clk 0:01:15.1]}
26... Rxd4 {[%clk 0:00:51.1]} 27. Ra1 {[%clk 0:00:46.4]} 27... Qd2 {[%clk
0:00:45.7]} 28. Qxd2 {[%clk 0:00:42.9]} 28... Rxd2 {[%clk 0:00:46.6]} 29. Raa7
{[%clk 0:00:40]} 29... Rxf2 {[%clk 0:00:42.2]} 30. Ng4 {[%clk 0:00:30.4]} 30...
Rxf4 {[%clk 0:00:37.1]} 31. Nxf6+ {[%clk 0:00:30.6]} 31... Rxf6 {[%clk
0:00:36.3]} 32. b4 {[%clk 0:00:23.2]} 32... Rf1 {[%clk 0:00:24.8]} 33. Rc7
{[%clk 0:00:22.5]} 33... Rxc7 {[%clk 0:00:19.7]} 34. Rxc7 {[%clk 0:00:22.1]}
34... e3 {[%clk 0:00:20.1]} 35. c6 {[%clk 0:00:11.2]} 35... e2 {[%clk
0:00:19.6]} 36. Rc8+ {[%clk 0:00:11.3]} 36... Kh7 {[%clk 0:00:19.8]} 37. c7
{[%clk 0:00:02.1]} 37... e1=Q {[%clk 0:00:19.9]} 38. Rh8+ {[%clk 0:00:01.2]}
38... Kxh8 {[%clk 0:00:19.3]} 39. c8=Q+ {[%clk 0:00:02.1]} 39... Kh7 {[%clk
0:00:19.3]} 0-1

[Event "*** Titled Tuesday Blitz"]
[Site "Chess.com"]
[Date "2021.02.16"]
[Round "9"]
[White "GigaQuparadze"]
[Black "kingofthenil"]
[Result "1-0"]
[WhiteElo "2935"]
[BlackElo "2705"]
[TimeControl "180+1"]
[EndTime "11:48:31 PST"]
[Termination "GigaQuparadze won on time"]

1. e4 {[%clk 0:03:00.9]} 1... Nc6 {[%clk 0:01:14]} 2. Nf3 {[%clk 0:02:50.9]}
2... d5 {[%clk 0:01:14]} 3. exd5 {[%clk 0:02:50.5]} 3... Qxd5 {[%clk 0:01:14.9]}
4. Nc3 {[%clk 0:02:50.9]} 4... Qh5 {[%clk 0:01:15.5]} 5. Be2 {[%clk 0:02:49.9]}
5... Bg4 {[%clk 0:01:15.8]} 6. h3 {[%clk 0:02:49.4]} 6... O-O-O {[%clk
0:01:16.1]} 7. O-O {[%clk 0:02:49.3]} 7... Bxh3 {[%clk 0:01:16.6]} 8. gxh3
{[%clk 0:02:48.8]} 8... Qxh3 {[%clk 0:01:17.5]} 9. Nh2 {[%clk 0:02:48.9]} 9...
e6 {[%clk 0:01:17.7]} 10. Bg4 {[%clk 0:02:47.2]} 10... Qh4 {[%clk 0:01:18.2]}
11. Qf3 {[%clk 0:02:45.4]} 11... h5 {[%clk 0:01:15.9]} 12. Bh3 {[%clk
0:02:43.5]} 12... Nd4 {[%clk 0:01:14.7]} 13. Qg3 {[%clk 0:02:41.6]} 13... Qxg3+
{[%clk 0:01:15.2]} 14. fxg3 {[%clk 0:02:42.5]} 14... g5 {[%clk 0:01:16.1]} 15.
Rxf7 {[%clk 0:02:34.8]} 15... g4 {[%clk 0:01:16.1]} 16. Bg2 {[%clk 0:02:34.2]}
16... Nh6 {[%clk 0:01:16.6]} 17. Rf1 {[%clk 0:02:31.9]} 17... Bc5 {[%clk
0:01:04.2]} 18. Ne4 {[%clk 0:02:24.8]} 18... Bb6 {[%clk 0:00:53.7]} 19. Kh1
{[%clk 0:02:15.8]} 19... Nhf5 {[%clk 0:00:52.2]} 20. c3 {[%clk 0:02:12.3]} 20...
Ne2 {[%clk 0:00:50]} 21. d4 {[%clk 0:02:12.1]} 21... h4 {[%clk 0:00:23]} 22. Re1
{[%clk 0:01:57.7]} 22... hxg3 {[%clk 0:00:13]} 23. Rxe2 {[%clk 0:01:52.6]} 23...
Rxh2+ {[%clk 0:00:13.3]} 24. Kg1 {[%clk 0:01:52.8]} 24... Rf8 {[%clk 0:00:11.4]}
25. Be3 {[%clk 0:01:45.4]} 25... e5 {[%clk 0:00:02.1]} 26. Rf1 {[%clk
0:01:39.8]} 26... Rhh8 {[%clk 0:00:02.8]} 27. Rxf5 {[%clk 0:01:38.1]} 27... Rxf5
{[%clk 0:00:03.7]} 28. Nxg3 {[%clk 0:01:38.2]} 28... exd4 {[%clk 0:00:01]} 29.
Nxf5 {[%clk 0:01:35.4]} 29... dxe3 {[%clk 0:00:01.9]} 30. Be4 {[%clk 0:01:34.9]}
30... Rf8 {[%clk 0:00:01.6]} 31. Kg2 {[%clk 0:01:34.6]} 31... Kd8 {[%clk
0:00:01.4]} 32. Nxe3 {[%clk 0:01:34.6]} 32... Re8 {[%clk 0:00:01.7]} 33. Nxg4
{[%clk 0:01:34.6]} 33... c6 {[%clk 0:00:01.5]} 34. Bf3 {[%clk 0:01:34.3]} 34...
Rf8 {[%clk 0:00:01.4]} 35. Rd2+ {[%clk 0:01:34.2]} 35... Kc7 {[%clk 0:00:01.8]}
36. Re2 {[%clk 0:01:32]} 36... Rf7 {[%clk 0:00:01.9]} 37. Ne5 {[%clk 0:01:31.4]}
37... Rg7+ {[%clk 0:00:02.2]} 38. Bg4 {[%clk 0:01:31.7]} 38... Bc5 {[%clk
0:00:03.1]} 39. Kf3 {[%clk 0:01:31.7]} 39... Bd6 {[%clk 0:00:03.3]} 40. Re4
{[%clk 0:01:28.9]} 40... b5 {[%clk 0:00:02.6]} 41. Nd3 {[%clk 0:01:28.6]} 41...
a5 {[%clk 0:00:02.1]} 42. Nf4 {[%clk 0:01:28.7]} 42... Rf7 {[%clk 0:00:02.3]}
43. Bh5 {[%clk 0:01:27.3]} 43... Rf6 {[%clk 0:00:02.2]} 44. Kg4 {[%clk
0:01:27.6]} 44... Kb6 {[%clk 0:00:02.1]} 45. b3 {[%clk 0:01:26.8]} 45... a4
{[%clk 0:00:02]} 46. bxa4 {[%clk 0:01:26.3]} 46... bxa4 {[%clk 0:00:02.6]} 47.
Rxa4 {[%clk 0:01:26.3]} 47... Be5 {[%clk 0:00:03.1]} 48. Ne2 {[%clk 0:01:21.8]}
48... Rf2 {[%clk 0:00:02.7]} 49. Re4 {[%clk 0:01:21.7]} 49... Bd6 {[%clk
0:00:01.7]} 50. a4 {[%clk 0:01:18.2]} 50... Ka5 {[%clk 0:00:01.9]} 51. Be8
{[%clk 0:01:16.8]} 51... c5 {[%clk 0:00:01.9]} 52. Bb5 {[%clk 0:01:13.4]} 52...
Rg2+ {[%clk 0:00:01.5]} 53. Kf5 {[%clk 0:01:13.2]} 53... Rg7 {[%clk 0:00:02.4]}
54. Ke6 {[%clk 0:01:12.9]} 54... Bc7 {[%clk 0:00:01.9]} 55. Kd5 {[%clk
0:01:12.1]} 55... Bb6 {[%clk 0:00:02.2]} 56. c4 {[%clk 0:01:11.2]} 56... Ba7
{[%clk 0:00:01.6]} 57. Nf4 {[%clk 0:01:10.4]} 57... Bb6 {[%clk 0:00:02.1]} 58.
Ne6 {[%clk 0:01:10.3]} 58... Rh7 {[%clk 0:00:02]} 59. Kc6 {[%clk 0:01:10.3]}
59... Rh6 {[%clk 0:00:01.7]} 60. Re5 {[%clk 0:01:07.8]} 60... Rg6 {[%clk
0:00:02]} 61. Kd5 {[%clk 0:01:07.5]} 61... Rg1 {[%clk 0:00:01.5]} 62. Nxc5
{[%clk 0:01:06.3]} 62... Bxc5 {[%clk 0:00:01]} 63. Kxc5 {[%clk 0:01:05.3]} 63...
Rg5 {[%clk 0:00:01.3]} 64. Kd5 {[%clk 0:01:05.2]} 1-0

[Event "*** Titled Tuesday Blitz"]
[Site "Chess.com"]
[Date "2021.02.16"]
[Round "9"]
[White "vovachesss"]
[Black "InitiatingASC"]
[Result "1-0"]
[WhiteElo "2643"]
[BlackElo "2429"]
[TimeControl "180+1"]
[EndTime "11:48:31 PST"]
[Termination "vovachesss won on time"]

1. e4 {[%clk 0:03:00.9]} 1... c5 {[%clk 0:02:59.8]} 2. d4 {[%clk 0:03:00.5]}
2... cxd4 {[%clk 0:02:59.6]} 3. c3 {[%clk 0:03:01.4]} 3... Nf6 {[%clk
0:02:59.1]} 4. e5 {[%clk 0:03:01.6]} 4... Nd5 {[%clk 0:02:59.3]} 5. Nf3 {[%clk
0:03:02.5]} 5... Nc6 {[%clk 0:02:59.3]} 6. Bc4 {[%clk 0:03:02.8]} 6... e6 {[%clk
0:02:56.4]} 7. O-O {[%clk 0:03:02.3]} 7... d6 {[%clk 0:02:55.1]} 8. cxd4 {[%clk
0:02:58.3]} 8... Nb6 {[%clk 0:02:48.6]} 9. Bd3 {[%clk 0:02:55.1]} 9... d5 {[%clk
0:02:38.8]} 10. Qe2 {[%clk 0:02:51.2]} 10... Be7 {[%clk 0:02:33]} 11. Nc3 {[%clk
0:02:50.3]} 11... Bd7 {[%clk 0:02:30.5]} 12. Bf4 {[%clk 0:02:38.4]} 12... Na5
{[%clk 0:02:29.5]} 13. b3 {[%clk 0:02:33.8]} 13... Rc8 {[%clk 0:02:23.1]} 14.
Rac1 {[%clk 0:02:33]} 14... Ba3 {[%clk 0:02:21.8]} 15. Rc2 {[%clk 0:02:32]}
15... Nc6 {[%clk 0:02:14.6]} 16. Nb5 {[%clk 0:02:31.4]} 16... Be7 {[%clk
0:02:14]} 17. Nd6+ {[%clk 0:02:24]} 17... Bxd6 {[%clk 0:02:09]} 18. exd6 {[%clk
0:02:24.9]} 18... Nb4 {[%clk 0:02:06.1]} 19. Rc7 {[%clk 0:02:09.7]} 19... Nxd3
{[%clk 0:01:51.1]} 20. Qxd3 {[%clk 0:02:10.6]} 20... Rxc7 {[%clk 0:01:44.2]} 21.
dxc7 {[%clk 0:02:09.5]} 21... Qe7 {[%clk 0:01:44.7]} 22. Ne5 {[%clk 0:01:31.3]}
22... O-O {[%clk 0:01:36.2]} 23. Qg3 {[%clk 0:01:31.1]} 23... Bb5 {[%clk
0:01:13.8]} 24. Rc1 {[%clk 0:01:31]} 24... Rc8 {[%clk 0:01:13.8]} 25. a4 {[%clk
0:01:20.1]} 25... Be8 {[%clk 0:01:13.7]} 26. Nd3 {[%clk 0:01:17.5]} 26... f6
{[%clk 0:01:02.9]} 27. Bd6 {[%clk 0:01:14.4]} 27... Qf7 {[%clk 0:00:50.2]} 28.
Nc5 {[%clk 0:01:13.1]} 28... Bc6 {[%clk 0:00:50]} 29. Re1 {[%clk 0:00:59.6]}
29... Re8 {[%clk 0:00:47.6]} 30. Qg4 {[%clk 0:00:52.3]} 30... Nc8 {[%clk
0:00:39.1]} 31. Bg3 {[%clk 0:00:52.8]} 31... e5 {[%clk 0:00:38.2]} 32. dxe5
{[%clk 0:00:46.9]} 32... Qxc7 {[%clk 0:00:38.4]} 33. f4 {[%clk 0:00:21.3]} 33...
Qb6 {[%clk 0:00:25]} 34. Bf2 {[%clk 0:00:18.3]} 34... Qb4 {[%clk 0:00:18]} 35.
Ne6 {[%clk 0:00:13.4]} 35... g6 {[%clk 0:00:15.2]} 36. Nd4 {[%clk 0:00:07.2]}
36... Nd6 {[%clk 0:00:13.3]} 37. Nxc6 {[%clk 0:00:04.9]} 37... bxc6 {[%clk
0:00:13.4]} 38. Qd7 {[%clk 0:00:05]} 38... fxe5 {[%clk 0:00:08.1]} 39. fxe5
{[%clk 0:00:05]} 39... Kf8 {[%clk 0:00:03.3]} 40. Qxd6+ {[%clk 0:00:04.4]} 40...
Qxd6 {[%clk 0:00:02.9]} 41. exd6 {[%clk 0:00:05.3]} 41... Rb8 {[%clk 0:00:02.1]}
42. Bc5 {[%clk 0:00:04.4]} 1-0

[Event "*** Titled Tuesday Blitz"]
[Site "Chess.com"]
[Date "2021.02.16"]
[Round "9"]
[White "Aslanov_Umid"]
[Black "aa175"]
[Result "1/2-1/2"]
[WhiteElo "2377"]
[BlackElo "2608"]
[TimeControl "180+1"]
[EndTime "11:48:33 PST"]
[Termination "Game drawn by stalemate"]

1. e4 {[%clk 0:03:00.9]} 1... c5 {[%clk 0:03:00]} 2. Nf3 {[%clk 0:03:01]} 2...
d6 {[%clk 0:03:00.4]} 3. d4 {[%clk 0:03:01.4]} 3... cxd4 {[%clk 0:03:01.3]} 4.
Nxd4 {[%clk 0:03:02]} 4... Nf6 {[%clk 0:03:01.8]} 5. Nc3 {[%clk 0:03:01.9]} 5...
a6 {[%clk 0:03:02.3]} 6. Bc4 {[%clk 0:03:01.6]} 6... e6 {[%clk 0:03:02.6]} 7.
Bb3 {[%clk 0:03:00.9]} 7... b5 {[%clk 0:03:01.2]} 8. O-O {[%clk 0:02:57]} 8...
Nbd7 {[%clk 0:03:01.3]} 9. Qf3 {[%clk 0:02:51]} 9... Bb7 {[%clk 0:03:01.2]} 10.
Bg5 {[%clk 0:02:42]} 10... h6 {[%clk 0:02:59.1]} 11. Bh4 {[%clk 0:02:41.9]}
11... g5 {[%clk 0:02:57.7]} 12. Bg3 {[%clk 0:02:42]} 12... b4 {[%clk 0:02:58.2]}
13. Na4 {[%clk 0:02:41.5]} 13... Nxe4 {[%clk 0:02:55.3]} 14. Bxe6 {[%clk
0:01:57.8]} 14... fxe6 {[%clk 0:02:48.4]} 15. Nxe6 {[%clk 0:01:58.7]} 15... Qa5
{[%clk 0:02:38.7]} 16. Rfe1 {[%clk 0:01:54.9]} 16... Qxa4 {[%clk 0:01:57.2]} 17.
Rxe4 {[%clk 0:01:45.4]} 17... Bxe4 {[%clk 0:01:20.8]} 18. Qxe4 {[%clk
0:01:46.3]} 18... d5 {[%clk 0:01:21.2]} 19. Nc7+ {[%clk 0:01:27.9]} 19... Kf7
{[%clk 0:01:20.5]} 20. Qxd5+ {[%clk 0:01:06.8]} 20... Kg7 {[%clk 0:01:03.4]} 21.
Qxa8 {[%clk 0:00:54.6]} 21... Qxc2 {[%clk 0:00:43]} 22. Qd5 {[%clk 0:00:41.6]}
22... Nf6 {[%clk 0:00:18]} 23. Qe5 {[%clk 0:00:31.4]} 23... Qc6 {[%clk
0:00:02.5]} 24. Rd1 {[%clk 0:00:19.1]} 24... Bc5 {[%clk 0:00:01.3]} 25. Ne6+
{[%clk 0:00:16.4]} 25... Kf7 {[%clk 0:00:01.3]} 26. Nxc5 {[%clk 0:00:16]} 26...
Re8 {[%clk 0:00:01.8]} 27. Qd4 {[%clk 0:00:13.7]} 27... Nd5 {[%clk 0:00:01.6]}
28. h3 {[%clk 0:00:11.2]} 28... Nf6 {[%clk 0:00:01.9]} 29. Qd6 {[%clk 0:00:10]}
29... Qxd6 {[%clk 0:00:02]} 30. Rxd6 {[%clk 0:00:10.9]} 30... Re1+ {[%clk
0:00:02.2]} 31. Kh2 {[%clk 0:00:10.6]} 31... Re2 {[%clk 0:00:02.4]} 32. Rxa6
{[%clk 0:00:10.3]} 32... Rxb2 {[%clk 0:00:01.9]} 33. Be5 {[%clk 0:00:09.6]}
33... Rc2 {[%clk 0:00:02.4]} 34. Rxf6+ {[%clk 0:00:09.3]} 34... Ke7 {[%clk
0:00:02.7]} 35. Rxh6 {[%clk 0:00:09.4]} 35... Rxa2 {[%clk 0:00:02.1]} 36. Ne4
{[%clk 0:00:09.5]} 36... Kf7 {[%clk 0:00:02.2]} 37. Nxg5+ {[%clk 0:00:09.4]}
37... Ke8 {[%clk 0:00:02.7]} 38. Rh7 {[%clk 0:00:09.4]} 38... b3 {[%clk
0:00:02.8]} 39. Ne6 {[%clk 0:00:09.4]} 39... b2 {[%clk 0:00:01.4]} 40. Bxb2
{[%clk 0:00:09.3]} 40... Rxb2 {[%clk 0:00:01.6]} 41. f4 {[%clk 0:00:10.2]} 41...
Rb7 {[%clk 0:00:01.7]} 42. Rxb7 {[%clk 0:00:09.7]} 1/2-1/2

[Event "*** Titled Tuesday Blitz"]
[Site "Chess.com"]
[Date "2021.02.16"]
[Round "9"]
[White "atalz0"]
[Black "TST2014"]
[Result "1-0"]
[WhiteElo "2425"]
[BlackElo "2555"]
[TimeControl "180+1"]
[EndTime "11:48:33 PST"]
[Termination "atalz0 won by resignation"]

1. d4 {[%clk 0:03:00.9]} 1... Nf6 {[%clk 0:02:59]} 2. c4 {[%clk 0:03:01]} 2...
c5 {[%clk 0:02:58.2]} 3. d5 {[%clk 0:03:00.9]} 3... b5 {[%clk 0:02:58.1]} 4.
cxb5 {[%clk 0:03:01.8]} 4... a6 {[%clk 0:02:58.1]} 5. bxa6 {[%clk 0:03:01.6]}
5... Bxa6 {[%clk 0:02:58]} 6. Nc3 {[%clk 0:03:01.8]} 6... g6 {[%clk 0:02:57.4]}
7. e4 {[%clk 0:03:02.4]} 7... Bxf1 {[%clk 0:02:57.1]} 8. Kxf1 {[%clk 0:03:03.3]}
8... d6 {[%clk 0:02:57.7]} 9. g3 {[%clk 0:03:03.8]} 9... Bg7 {[%clk 0:02:55.6]}
10. Kg2 {[%clk 0:03:04.3]} 10... O-O {[%clk 0:02:56.2]} 11. Nf3 {[%clk
0:03:04.8]} 11... Nbd7 {[%clk 0:02:56.8]} 12. a4 {[%clk 0:03:05.3]} 12... Qb6
{[%clk 0:02:56.5]} 13. Ra3 {[%clk 0:03:04.9]} 13... Rfb8 {[%clk 0:02:54.4]} 14.
Qe2 {[%clk 0:03:02.5]} 14... Ne8 {[%clk 0:02:52.3]} 15. h4 {[%clk 0:03:01.9]}
15... h5 {[%clk 0:02:37.9]} 16. Nd2 {[%clk 0:02:28.1]} 16... Qa6 {[%clk
0:02:34.2]} 17. Qxa6 {[%clk 0:01:46]} 17... Rxa6 {[%clk 0:02:32.1]} 18. Nb5
{[%clk 0:01:46.9]} 18... Ne5 {[%clk 0:02:11.1]} 19. f4 {[%clk 0:01:37.7]} 19...
Ng4 {[%clk 0:02:09.8]} 20. Nc4 {[%clk 0:01:37.7]} 20... Rb7 {[%clk 0:02:05.1]}
21. Re1 {[%clk 0:01:20.4]} 21... Nc7 {[%clk 0:02:02.6]} 22. Re2 {[%clk
0:00:46.6]} 22... Kf8 {[%clk 0:01:39]} 23. b3 {[%clk 0:00:27.7]} 23... Nxb5
{[%clk 0:01:37.7]} 24. axb5 {[%clk 0:00:27.3]} 24... Rxa3 {[%clk 0:01:35.5]} 25.
Nxa3 {[%clk 0:00:27.8]} 25... Ke8 {[%clk 0:01:27]} 26. Bb2 {[%clk 0:00:19.7]}
26... Bxb2 {[%clk 0:01:19.4]} 27. Rxb2 {[%clk 0:00:20.6]} 27... Kd7 {[%clk
0:01:17.9]} 28. b4 {[%clk 0:00:18.8]} 28... Ra7 {[%clk 0:01:11.2]} 29. Nc4
{[%clk 0:00:11.6]} 29... Ra4 {[%clk 0:01:05.9]} 30. Nb6+ {[%clk 0:00:09.7]}
30... Kc7 {[%clk 0:01:04.1]} 31. Nxa4 {[%clk 0:00:10.6]} 31... Ne3+ {[%clk
0:01:04.4]} 32. Kf3 {[%clk 0:00:10.2]} 32... Nc4 {[%clk 0:01:04.4]} 33. Rc2
{[%clk 0:00:10.1]} 33... Na3 {[%clk 0:01:03.8]} 34. Rc3 {[%clk 0:00:09.3]} 34...
Nxb5 {[%clk 0:01:03.7]} 35. Rc1 {[%clk 0:00:07.9]} 35... Nd4+ {[%clk 0:01:03.5]}
36. Kf2 {[%clk 0:00:07.4]} 36... Nb3 {[%clk 0:01:03.2]} 37. Rc3 {[%clk
0:00:06.8]} 37... Nd2 {[%clk 0:00:56.5]} 38. Ke3 {[%clk 0:00:06.6]} 38... Nf1+
{[%clk 0:00:55]} 39. Ke2 {[%clk 0:00:05.8]} 39... Nh2 {[%clk 0:00:54.2]} 40.
bxc5 {[%clk 0:00:05.3]} 40... dxc5 {[%clk 0:00:53]} 41. Nxc5 {[%clk 0:00:04.8]}
41... Kd6 {[%clk 0:00:52.9]} 42. Nd3 {[%clk 0:00:05.2]} 42... Ng4 {[%clk
0:00:51.8]} 43. Rc6+ {[%clk 0:00:06.1]} 43... Kd7 {[%clk 0:00:52]} 44. e5 {[%clk
0:00:06.4]} 44... e6 {[%clk 0:00:50.1]} 45. Nc5+ {[%clk 0:00:07.3]} 45... Ke7
{[%clk 0:00:50.2]} 46. d6+ {[%clk 0:00:07.5]} 46... Kd8 {[%clk 0:00:50.4]} 47.
d7 {[%clk 0:00:07.7]} 47... Nxe5 {[%clk 0:00:44.8]} 48. fxe5 {[%clk 0:00:07.3]}
48... Ke7 {[%clk 0:00:45.3]} 49. Rc8 {[%clk 0:00:07.3]} 49... f5 {[%clk
0:00:45.3]} 50. d8=Q+ {[%clk 0:00:07.7]} 1-0

[Event "*** Titled Tuesday Blitz"]
[Site "Chess.com"]
[Date "2021.02.16"]
[Round "9"]
[White "GianmarcoVaR"]
[Black "Twitch_ElhamBlitz05"]
[Result "1-0"]
[WhiteElo "2669"]
[BlackElo "2814"]
[TimeControl "180+1"]
[EndTime "11:48:34 PST"]
[Termination "GianmarcoVaR won on time"]

1. Nf3 {[%clk 0:03:00.4]} 1... Nf6 {[%clk 0:02:50.7]} 2. g3 {[%clk 0:03:00.6]}
2... g6 {[%clk 0:02:49.8]} 3. Bg2 {[%clk 0:03:00.9]} 3... Bg7 {[%clk 0:02:50.5]}
4. O-O {[%clk 0:03:01.5]} 4... O-O {[%clk 0:02:51.1]} 5. c4 {[%clk 0:03:01]}
5... c6 {[%clk 0:02:49.6]} 6. d4 {[%clk 0:03:00.8]} 6... d5 {[%clk 0:02:47.3]}
7. b3 {[%clk 0:03:01.2]} 7... Bf5 {[%clk 0:02:46.3]} 8. Bb2 {[%clk 0:03:00.1]}
8... Na6 {[%clk 0:02:45.6]} 9. Nc3 {[%clk 0:02:53.5]} 9... Ne4 {[%clk 0:02:45]}
10. Nh4 {[%clk 0:02:45.6]} 10... Nxc3 {[%clk 0:02:39.7]} 11. Bxc3 {[%clk
0:02:46]} 11... Bc8 {[%clk 0:02:37.9]} 12. Rc1 {[%clk 0:02:42.3]} 12... Nc7
{[%clk 0:02:35.9]} 13. Qd3 {[%clk 0:02:35.2]} 13... b6 {[%clk 0:02:12.7]} 14. e4
{[%clk 0:02:35.1]} 14... Ba6 {[%clk 0:02:10.1]} 15. Rfd1 {[%clk 0:02:21.1]}
15... b5 {[%clk 0:01:54]} 16. exd5 {[%clk 0:02:01.9]} 16... bxc4 {[%clk
0:01:54.1]} 17. bxc4 {[%clk 0:01:59.7]} 17... cxd5 {[%clk 0:01:54.5]} 18. Ba5
{[%clk 0:01:50.3]} 18... Bxc4 {[%clk 0:01:50.2]} 19. Rxc4 {[%clk 0:01:43.4]}
19... dxc4 {[%clk 0:01:49.9]} 20. Qxc4 {[%clk 0:01:43.8]} 20... Rc8 {[%clk
0:01:32.4]} 21. Rc1 {[%clk 0:01:43.9]} 21... Qxd4 {[%clk 0:01:01.2]} 22. Bb7
{[%clk 0:01:20.9]} 22... Nb5 {[%clk 0:00:39.2]} 23. Bxc8 {[%clk 0:01:15.6]}
23... Qxc4 {[%clk 0:00:39.3]} 24. Rxc4 {[%clk 0:01:14.3]} 24... Nd6 {[%clk
0:00:40.2]} 25. Ba6 {[%clk 0:01:11.4]} 25... Nxc4 {[%clk 0:00:40.4]} 26. Bxc4
{[%clk 0:01:12]} 26... Rc8 {[%clk 0:00:40.4]} 27. Bb3 {[%clk 0:01:08.6]} 27...
Bc3 {[%clk 0:00:28]} 28. Bxc3 {[%clk 0:01:08]} 28... Rxc3 {[%clk 0:00:28.9]} 29.
Kg2 {[%clk 0:01:06.3]} 29... e6 {[%clk 0:00:19.5]} 30. Nf3 {[%clk 0:01:04.5]}
30... Rd3 {[%clk 0:00:19.7]} 31. Ne5 {[%clk 0:01:01.6]} 31... Rd2 {[%clk
0:00:17.1]} 32. Kf3 {[%clk 0:00:56.5]} 32... Kg7 {[%clk 0:00:15.4]} 33. h4
{[%clk 0:00:53.8]} 33... h5 {[%clk 0:00:13.9]} 34. Ke3 {[%clk 0:00:53]} 34...
Rd6 {[%clk 0:00:12.4]} 35. Nc4 {[%clk 0:00:49.2]} 35... Rd5 {[%clk 0:00:12.3]}
36. Nb2 {[%clk 0:00:46.3]} 36... Re5+ {[%clk 0:00:12.3]} 37. Kd2 {[%clk
0:00:44.9]} 37... Rf5 {[%clk 0:00:12.2]} 38. Ke3 {[%clk 0:00:44.7]} 38... Re5+
{[%clk 0:00:12.4]} 39. Kd2 {[%clk 0:00:44]} 39... g5 {[%clk 0:00:09.4]} 40. Nd3
{[%clk 0:00:42.4]} 40... Ra5 {[%clk 0:00:09.5]} 41. hxg5 {[%clk 0:00:39.1]}
41... Rxg5 {[%clk 0:00:10.4]} 42. Ke3 {[%clk 0:00:36.1]} 42... Ra5 {[%clk
0:00:07.2]} 43. Kf4 {[%clk 0:00:33.7]} 43... Kf6 {[%clk 0:00:06.5]} 44. f3
{[%clk 0:00:29.9]} 44... Rf5+ {[%clk 0:00:06.3]} 45. Ke3 {[%clk 0:00:30.3]}
45... Rg5 {[%clk 0:00:06.8]} 46. Nf2 {[%clk 0:00:30]} 46... Kg6 {[%clk
0:00:03.7]} 47. Bc2+ {[%clk 0:00:29.3]} 47... Kh6 {[%clk 0:00:03.4]} 48. Ne4
{[%clk 0:00:28.6]} 48... Ra5 {[%clk 0:00:02.7]} 49. Bb3 {[%clk 0:00:28.4]} 49...
f5 {[%clk 0:00:02.4]} 50. Nd6 {[%clk 0:00:26.4]} 1-0